bitfinex-derivatives/quotes_ETHF0:USTF0_20250730
["timestamp","ask_amount","ask_price","bid_price","bid_amount"]
[1753885231754,1.15131,3780.7,3780.6,22.2658]
[1753885232343,0.6223,3780.7,3780.6,22.2658]
[1753885232846,40.8,3780.8,3780.7,3.6948]
[1753885233457,40.8,3780.8,3780.7,22.2558]
[1753885233653,2.1858,3781.1,3781.0,2.4817]
[1753885233858,2.1858,3781.1,3781.0,23.4499]
[1753885234246,42.9858,3781.1,3781.0,23.4499]
[1753885234447,42.9858,3781.1,3781.0,24.7355]
[1753885235554,42.9858,3781.1,3781.0,24.7325]
[1753885236148,41.3961,3781.1,3781.0,6.1765]
[1753885236346,41.3961,3781.1,3781.0,24.7205]
[1753885236347,41.3784,3781.1,3781.0,24.7205]
[1753885236552,42.0007,3781.1,3781.0,24.7205]
[1753885238556,41.3867,3781.1,3781.0,24.7205]
[1753885238949,41.3867,3781.1,3781.0,6.1765]
[1753885239151,41.3867,3781.1,3781.0,24.7035]
[1753885239959,42.0007,3781.1,3781.0,24.7035]
[1753885240848,2.1775,3780.7,3780.6,0.8516]
[1753885241052,2.1858,3780.7,3780.6,19.3756]
[1753885241264,40.8,3781.1,3781.0,6.1765]
[1753885241561,40.8,3781.1,3781.0,24.6925]
[1753885241756,2.1858,3781.6,3781.5,5.3249]
[1753885241964,0.5784,3781.6,3781.5,24.7135]
[1753885242149,41.3784,3781.6,3781.5,24.7135]
[1753885242555,41.3867,3781.6,3781.5,24.7135]
[1753885243657,41.3784,3781.6,3781.5,24.7135]
[1753885244365,40.8,3781.6,3781.5,24.7135]
[1753885246058,0.2,3781.9,3781.8,2.4817]
[1753885246259,0.2,3781.9,3781.8,21.53355]
[1753885246453,0.2,3781.9,3781.8,25.22835]
[1753885246655,41.0,3781.9,3781.8,25.22835]
[1753885250567,41.0083,3781.9,3781.8,25.22835]
[1753885250757,41.6223,3781.9,3781.8,25.22835]
[1753885251363,41.0,3781.9,3781.8,25.22835]
[1753885252462,41.0083,3781.9,3781.8,25.22835]
[1753885252872,41.6223,3781.9,3781.8,25.19435]
[1753885253670,41.0,3781.9,3781.8,25.19435]
[1753885253858,0.2,3781.9,3781.8,25.19435]
[1753885255065,0.2,3781.9,3781.8,26.6954659]
[1753885256668,40.8,3782.6,3782.5,5.41965]
[1753885256865,3.23447,3783.1,3783.0,6.1765]
[1753885257065,3.23447,3783.1,3783.0,24.6645]
[1753885257374,44.65967,3783.1,3783.0,21.8213]
[1753885257564,44.65967,3783.1,3783.0,19.3396]
[1753885258766,40.8,3783.1,3783.0,25.26298]
[1753885259262,0.2,3783.9,3783.8,6.2463]
[1753885259466,0.2,3783.9,3783.8,26.2374159]
[1753885260063,0.2,3783.9,3783.8,7.7474159]
[1753885260370,0.2,3783.9,3783.8,24.7403]
[1753885260772,1.4274804,3784.9,3784.5,0.52845]
[1753885260773,0.94803579,3784.9,3784.5,0.52845]
[1753885260965,0.75670527,3784.8,3784.7,4.71]
[1753885261168,0.75670527,3784.8,3784.7,6.2463]
[1753885261373,41.55670527,3784.8,3784.7,6.2463]
[1753885262168,41.76020527,3784.8,3784.7,0.9033]
[1753885262372,3.22378,3784.4,3784.3,4.0466]
[1753885262571,0.6086,3784.1,3784.0,1.5363]
[1753885262779,1.36102344,3784.1,3783.6,1.5363]
[1753885262970,1.35421,3783.5,3783.4,38.083]
[1753885263170,1.96281,3783.5,3783.4,56.584]
[1753885263378,0.2035,3783.5,3783.4,60.32]
[1753885263680,0.52861,3783.6,3783.4,56.584]
[1753885263981,0.2035,3784.3,3783.5,0.9033]
[1753885264171,0.2035,3784.9,3784.1,0.9033]
[1753885264378,0.75218897,3784.8,3784.3,2.4396]
[1753885264575,0.73199,3784.4,3784.2,18.502]
[1753885264875,0.52851,3784.3,3783.9,0.52854]
[1753885265075,0.52851,3784.2,3784.0,18.499]
[1753885265274,0.52847,3784.5,3784.2,2.8327]
[1753885265577,0.52846,3784.6,3784.4,1.5363]
[1753885265773,0.52847,3784.6,3784.4,3.736]
[1753885266077,0.52847,3784.6,3784.5,3.736]
[1753885266280,0.5284,3785.0,3784.5,3.36115]
[1753885266473,0.52843,3784.8,3784.7,2.1997]
[1753885266675,0.52843,3784.8,3784.7,22.232]
[1753885267270,0.52842,3784.9,3784.7,18.496]
[1753885267477,1.34052,3784.9,3784.8,2.4396]
[1753885267677,0.52845,3784.6,3784.3,0.9033]
[1753885267876,1.34057,3784.5,3784.4,0.9033]
[1753885268081,1.34062,3784.2,3784.1,2.1997]
[1753885268375,0.8256,3784.7,3784.1,22.226]
[1753885268584,0.52851,3784.3,3784.2,3.736]
[1753885268777,0.73201,3784.3,3784.2,3.736]
[1753885268977,1.34061,3784.3,3784.2,19.3903]
[1753885269180,0.8121,3783.9,3783.8,2.8327]
[1753885269372,0.6086,3784.2,3783.9,1.5363]
[1753885269579,0.52847,3784.5,3783.8,18.487]
[1753885269784,0.52849,3784.4,3784.1,2.1997]
[1753885269988,0.52847,3784.5,3784.2,18.498]
[1753885270173,40.8,3784.5,3784.4,3.736]
[1753885270378,0.73192,3784.9,3784.8,2.4396]
[1753885270577,0.52848,3784.5,3784.0,0.52854]
[1753885270886,0.2035,3784.3,3784.2,3.736]
[1753885271183,0.2035,3784.3,3784.2,22.245]
[1753885271385,1.34056,3784.6,3784.3,3.736]
[1753885271686,0.52848,3784.4,3784.3,3.736]
[1753885271979,1.34058,3784.4,3784.3,3.736]
[1753885272377,0.8121,3784.4,3784.3,2.4396]
[1753885272574,0.6086,3784.9,3784.4,1.43178]
[1753885272775,41.0035,3785.0,3784.5,18.502]
[1753885272980,0.52844,3784.8,3784.6,2.4396]
[1753885273278,0.8121,3784.7,3784.6,2.4396]
[1753885273781,0.8121,3784.7,3784.6,18.5]
[1753885273983,1.4342,3784.7,3784.6,18.5]
[1753885274281,0.73194,3784.7,3784.6,22.236]
[1753885274584,0.2035,3785.4,3784.8,2.4396]
[1753885274774,1.3209,3785.3,3784.9,18.504]
[1753885275078,0.8121,3784.9,3784.8,0.9033]
[1753885275287,0.8121,3784.9,3784.8,19.4093]
[1753885275474,1.2307,3784.8,3784.7,18.523]
[1753885275677,0.52844,3784.7,3784.5,18.52]
[1753885275884,1.4342,3784.6,3784.5,18.52]
[1753885276089,1.4342,3784.6,3784.3,3.736]
[1753885276090,0.52849,3784.4,3784.3,3.736]
[1753885276382,1.34059,3784.4,3784.3,22.259]
[1753885276588,1.34059,3784.4,3784.3,20.9606]
[1753885276781,1.34059,3784.4,3783.9,0.9033]
[1753885276782,0.52854,3784.0,3783.9,0.9033]
[1753885276981,0.52861,3783.5,3783.4,38.083]
[1753885277282,0.8121,3783.5,3783.4,60.34]
[1753885277486,0.2035,3783.5,3783.4,60.347]
[1753885277685,0.5286,3783.6,3783.4,60.347]
[1753885277884,0.52859,3783.7,3783.4,18.528]
[1753885278084,0.52858,3783.8,3783.7,0.9033]
[1753885278275,1.75928,3783.8,3783.7,0.9033]
[1753885278478,1.13721,3783.5,3783.4,20.9676]
[1753885278778,1.34071,3783.5,3783.4,20.9676]
[1753885278984,1.34071,3783.5,3783.4,2.4396]
[1753885279290,1.34071,3783.5,3783.4,3.736]
[1753885280187,0.2035,3783.5,3783.4,3.736]
[1753885280384,0.52862,3783.4,3783.2,18.527]
[1753885280581,0.52862,3783.4,3783.2,21.3597]
[1753885280882,1.34072,3783.4,3783.3,1.5363]
[1753885281182,0.52862,3783.4,3783.3,18.522]
[1753885281381,41.4086,3783.4,3783.1,22.256]
[1753885281583,0.52864,3783.3,3783.1,18.52]
[1753885281883,40.8,3783.4,3783.2,0.52864]
[1753885282095,0.52858,3783.8,3783.6,1.5363]
[1753885282291,0.52858,3783.8,3783.7,3.736]
[1753885282482,40.8,3783.8,3783.6,18.527]
[1753885283086,40.8,3783.8,3783.7,3.736]
[1753885283277,0.2035,3784.2,3783.6,18.527]
[1753885283588,0.52852,3784.2,3783.8,0.52855]
[1753885283786,40.8,3784.2,3783.6,18.527]
[1753885284089,0.2035,3784.6,3783.8,3.736]
[1753885284283,0.2035,3784.6,3783.9,0.9033]
[1753885284586,40.8,3784.5,3784.4,3.736]
[1753885284794,41.0035,3784.5,3784.4,3.736]
[1753885285087,41.6121,3784.5,3784.4,3.736]
[1753885285687,41.6121,3784.5,3784.4,0.9033]
[1753885286587,1.11231,3784.2,3784.1,6.2463]
[1753885286781,0.5285,3784.3,3784.1,2.5103]
[1753885287090,0.52846,3784.6,3784.5,6.2463]
[1753885287391,3.22376,3784.6,3784.5,6.2463]
[1753885287982,0.8121,3784.6,3784.0,18.529]
[1753885288191,0.9738,3784.2,3784.1,3.4136]
[1753885288392,0.9738,3784.2,3784.1,6.2463]
[1753885288894,2.28838,3784.4,3784.3,2.4832]
[1753885289096,2.28838,3784.4,3784.3,6.1572]
[1753885289282,1.33298,3784.4,3784.3,6.1572]
[1753885289805,0.8045,3784.4,3784.3,6.1572]
[1753885290294,41.6045,3784.4,3784.3,6.1572]
[1753885291586,40.8,3784.4,3784.3,6.1572]
[1753885292098,0.00658681,3784.5,3784.4,3.01168]
[1753885292398,0.53505681,3784.5,3784.4,6.1572]
[1753885292695,0.00658681,3784.5,3784.4,6.1572]
[1753885293093,0.00658681,3784.5,3784.4,24.6422]
[1753885297599,2.70638681,3784.5,3784.4,23.3388]
[1753885297799,2.70638681,3784.5,3784.4,24.6392]
[1753885298297,2.09538681,3784.5,3784.4,24.6392]
[1753885299096,2.09538681,3784.5,3784.4,6.1572]
[1753885299297,2.09538681,3784.5,3784.4,23.3338]
[1753885299491,2.70638681,3784.5,3784.4,24.6342]
[1753885299691,0.60548681,3784.5,3784.4,24.6342]
[1753885300297,0.81108681,3784.5,3784.4,24.6342]
[1753885300499,0.00658681,3784.5,3784.4,24.6342]
[1753885300800,0.60548681,3784.5,3784.4,24.6342]
[1753885301600,0.00658681,3784.5,3784.4,24.6342]
[1753885304813,0.00658681,3784.5,3784.4,25.37313238]
[1753885305510,2.70638681,3784.5,3784.4,21.4317]
[1753885305815,0.00658681,3784.5,3784.4,24.6332]
[1753885306611,2.4942,3785.8,3785.7,7.42443238]
[1753885306911,0.2,3785.9,3785.8,6.1572]
[1753885307105,0.7989,3785.9,3785.8,6.1572]
[1753885307300,2.8998,3785.9,3785.8,6.1572]
[1753885307500,40.8,3786.2,3785.8,3.2676]
[1753885307703,41.0056,3786.2,3786.1,5.2842]
[1753885307908,41.0056,3786.2,3786.1,24.6322]
[1753885308304,42.44,3786.2,3786.1,19.348]
[1753885308504,43.17893238,3786.2,3786.1,18.475]
[1753885308909,0.54623,3786.3,3786.1,19.9756]
[1753885309110,2.7122,3786.3,3786.2,6.1572]
[1753885309412,0.018,3786.3,3786.2,6.1572]
[1753885310005,2.1068,3786.3,3786.2,6.1572]
[1753885310207,2.9178,3786.3,3786.2,6.1572]
[1753885310507,0.018,3786.3,3786.2,6.1572]
[1753885311402,2.9178,3786.3,3786.2,6.1572]
[1753885311602,2.9178,3786.3,3785.6,1.49670268]
[1753885311603,2.9178,3786.3,3785.7,2.801]
[1753885311914,2.9178,3786.3,3781.5,26.44399]
[1753885311915,2.8998,3785.9,3785.8,6.1572]
[1753885312114,3.5232,3785.9,3785.8,18.473]
[1753885312322,1.972,3786.2,3786.1,1.0071]
[1753885312511,2.8998,3786.2,3786.1,24.6302]
[1753885312917,1.7599,3786.2,3786.1,24.6302]
[1753885313120,0.018,3786.3,3786.2,3.674]
[1753885313310,0.018,3786.3,3786.2,6.1572]
[1753885315209,2.9178,3786.3,3786.2,0.873]
[1753885315410,3.42807,3785.9,3785.8,0.873]
[1753885315613,3.42807,3785.9,3785.8,19.344]
[1753885315916,3.42807,3785.9,3785.8,20.8446]
[1753885316218,2.61707,3785.9,3785.8,24.6262]
[1753885316515,2.61707,3785.9,3785.3,0.52835]
[1753885316516,0.52835,3785.4,3785.3,6.1572]
[1753885316707,0.52838,3785.2,3785.0,1.3004]
[1753885317014,3.84598,3785.2,3785.1,18.469]
[1753885317210,0.52841,3784.9,3784.8,38.056]
[1753885317516,3.42821,3784.9,3784.8,57.398]
[1753885317715,3.42821,3784.9,3784.8,38.929]
[1753885317909,3.42821,3784.9,3784.0,1.49670268]
[1753885317910,1.33948,3784.5,3783.8,0.19556801]
[1753885318116,0.2056,3784.5,3784.4,3.674]
[1753885318319,0.52845,3784.7,3784.6,2.801]
[1753885318511,41.32839,3785.1,3784.5,4.29470268]
[1753885318814,1.4344,3785.6,3784.5,4.29470268]
[1753885318815,0.52832,3785.6,3785.1,1.4443]
[1753885319016,0.52831,3785.7,3785.3,0.52835]
[1753885319211,0.52831,3785.7,3785.6,3.6451]
[1753885319410,1.54641,3785.7,3785.6,22.1151]
[1753885319613,0.2063,3785.7,3785.6,22.1151]
[1753885319914,0.5283,3785.8,3785.6,18.47]
[1753885320110,1.0181,3785.7,3785.6,18.47]
[1753885320414,0.8118,3785.3,3784.5,0.52846]
[1753885320717,1.0181,3784.8,3784.7,2.2914]
[1753885321125,1.0181,3784.8,3784.7,20.7604]
[1753885321316,1.0181,3784.8,3784.7,22.1141]
[1753885321522,0.52851,3784.2,3783.8,0.72411801]
[1753885321814,1.0181,3783.9,3783.8,0.19556801]
[1753885322011,41.8181,3783.9,3783.8,19.51266801]
[1753885322208,41.0063,3783.9,3783.8,22.31066801]
[1753885322414,0.52849,3784.4,3783.8,22.31066801]
[1753885322606,0.52851,3784.3,3784.1,3.6451]
[1753885322810,0.52849,3784.4,3784.3,3.6451]
[1753885323014,41.32849,3784.4,3784.3,3.6451]
[1753885323218,42.34659,3784.4,3784.3,3.6451]
[1753885323420,40.8,3784.4,3784.3,3.6451]
[1753885323613,0.2063,3785.2,3784.7,3.6451]
[1753885323919,0.2063,3785.3,3784.9,0.8471]
[1753885324221,1.0181,3785.1,3785.0,0.8471]
[1753885324415,0.5285,3784.3,3783.9,1.37564]
[1753885324618,1.0181,3784.1,3784.0,22.1631]
[1753885325017,1.0181,3784.1,3784.0,20.8094]
[1753885325314,0.2063,3784.1,3784.0,22.1641]
[1753885325715,41.53479,3784.4,3784.1,1.3537]
[1753885325915,0.52852,3784.2,3783.9,0.52855]
[1753885326114,0.52852,3784.2,3784.0,18.516]
[1753885326423,1.0181,3784.2,3784.1,0.52853]
[1753885326715,1.49670268,3785.1,3784.0,18.516]
[1753885326716,0.73476,3784.6,3784.3,2.798]
[1753885326917,0.73476,3784.6,3784.4,18.511]
[1753885327121,0.73476,3784.6,3784.5,3.6451]
[1753885327524,0.52844,3784.8,3784.6,3.6451]
[1753885327719,0.52845,3784.7,3784.5,3.6451]
[1753885327921,0.2063,3785.0,3784.5,3.6451]
[1753885327922,0.52843,3784.9,3784.6,3.6451]
[1753885328120,0.52841,3785.0,3784.7,19.03544]
[1753885328426,0.73471,3785.0,3784.9,3.6451]
[1753885328621,0.2063,3785.0,3784.9,3.6451]
[1753885328919,0.5284,3785.1,3785.0,3.6451]
[1753885329122,0.5284,3785.1,3785.0,22.1511]
[1753885329721,0.7347,3785.1,3785.0,22.1511]
[1753885329917,1.5459,3785.1,3785.0,22.1511]
[1753885330318,42.3459,3785.1,3785.0,22.1511]
[1753885330629,40.8,3785.1,3785.0,22.1511]
[1753885331116,1.8567,3785.3,3785.2,2.4802]
[1753885331321,2.8737,3785.3,3785.2,4.7716]
[1753885331517,2.8737,3785.3,3785.2,6.1253]
[1753885331824,1.5274,3785.3,3785.2,6.1253]
[1753885332026,0.52834,3785.4,3785.3,6.1253]
[1753885332231,0.52834,3785.4,3785.3,24.6193]
[1753885332522,44.82564,3785.4,3785.3,18.494]
[1753885332823,3.40211,3784.9,3784.8,6.1253]
[1753885333025,3.40211,3784.9,3784.8,24.6183]
[1753885333227,2.05588,3784.5,3784.4,0.8471]
[1753885333419,2.90793959,3784.5,3784.4,19.3411]
[1753885333617,2.90793959,3784.5,3783.8,1.04266801]
[1753885333618,1.54551,3784.2,3783.8,1.04266801]
[1753885333827,1.54555,3783.9,3783.8,2.48696801]
[1753885334125,1.54555,3783.9,3783.8,2.39636801]
[1753885334322,2.16915,3783.9,3783.8,19.53966801]
[1753885334631,2.16915,3783.9,3783.8,0.19556801]
[1753885334836,2.16915,3783.9,3783.8,18.69356801]
[1753885336228,0.52855,3784.0,3783.8,22.33866801]
[1753885336428,0.52855,3784.0,3783.9,3.6451]
[1753885336628,1.54555,3784.0,3783.8,0.19556801]
[1753885336930,1.017,3783.9,3783.8,1.04266801]
[1753885337136,1.6406,3783.9,3783.8,19.54666801]
[1753885337432,1.6406,3783.9,3783.8,0.19556801]
[1753885338132,42.4406,3783.9,3783.8,0.19556801]
[1753885338527,42.4406,3783.9,3783.0,38.053]
[1753885338528,0.6236,3783.2,3782.9,1.3537]
[1753885338733,1.35019,3782.9,3782.8,3.29834698]
[1753885338929,0.8215,3782.8,3782.7,4.14544698]
[1753885339331,0.8215,3782.8,3782.7,0.8471]
[1753885339538,1.4451,3782.8,3782.7,0.8471]
[1753885339830,1.35015,3783.2,3783.1,3.6451]
[1753885340036,0.0103,3783.2,3783.1,3.6451]
[1753885340230,41.6215,3783.2,3783.1,3.6451]
[1753885340430,40.8,3783.2,3783.1,2.798]
[1753885340632,40.8,3783.2,3783.1,3.6451]
[1753885341136,41.6215,3783.2,3783.1,3.6451]
[1753885341338,41.6215,3783.2,3783.1,6.1253]
[1753885342131,40.8103,3783.2,3783.1,6.1253]
[1753885342837,40.8,3783.2,3783.1,23.79927]
[1753885343134,0.52861,3783.6,3783.5,6.1253]
[1753885343535,41.32861,3783.6,3783.5,6.1253]
[1753885343930,40.8,3783.6,3783.5,6.1253]
[1753885344125,1.10998,3783.8,3783.7,6.1253]
[1753885344328,2.89388,3783.8,3783.7,6.1253]
[1753885344533,2.89388,3783.8,3783.5,18.502]
[1753885344534,41.33883,3784.1,3783.8,2.798]
[1753885344727,1.3212,3784.5,3784.1,2.798]
[1753885344728,0.0103,3784.5,3784.1,2.798]
[1753885345038,1.09957,3784.5,3784.4,6.1253]
[1753885345230,41.89957,3784.5,3784.4,6.1253]
[1753885345537,41.90987,3784.5,3784.4,6.1253]
[1753885345730,42.72107,3784.5,3784.4,6.1253]
[1753885346032,41.3711,3784.5,3784.4,6.1253]
[1753885346234,1.4348,3784.9,3784.7,2.4802]
[1753885346235,0.52842,3784.9,3784.7,2.4802]
[1753885346536,0.0103,3785.7,3785.1,3.6451]
[1753885346835,1.4771915,3785.6,3785.5,3.6451]
[1753885347036,0.53862,3785.6,3785.5,3.6451]
[1753885347337,0.72646388,3785.6,3785.5,3.6451]
[1753885347638,0.18784388,3785.6,3785.5,3.6451]
[1753885348141,0.52831,3785.7,3785.5,3.6451]
[1753885348432,1.33956,3785.3,3785.2,2.2914]
[1753885348626,1.34666,3785.3,3785.2,20.8014]
[1753885348831,1.34666,3785.3,3785.2,22.1948]
[1753885349135,0.52835,3785.4,3785.3,3.727]
[1753885349330,0.52835,3785.4,3785.3,2.3336]
[1753885349331,1.34315,3785.4,3785.3,2.3336]
[1753885349530,0.0071,3785.2,3784.6,0.9111]
[1753885349736,0.52843,3784.8,3784.7,21.3229]
[1753885350033,1.34323,3784.8,3784.7,21.3229]
[1753885350331,1.34323,3784.8,3784.7,0.9111]
[1753885350332,0.53553,3784.8,3784.7,0.9111]
[1753885350540,1.34323,3784.8,3784.7,19.4191]
[1753885350925,1.34323,3784.8,3784.7,0.9111]
[1753885351131,1.34323,3784.8,3784.7,2.3336]
[1753885351340,0.52843,3784.8,3784.7,3.727]
[1753885351526,0.52842,3784.9,3784.7,2.3336]
[1753885351729,0.52843,3784.8,3784.7,3.727]
[1753885352034,0.52843,3784.8,3784.7,22.229]
[1753885352827,40.8,3785.2,3784.8,3.727]
[1753885353041,1.32077,3785.7,3785.1,1.3934]
[1753885353243,0.18820316,3785.6,3785.2,18.511]
[1753885353537,0.52836,3785.3,3785.2,18.511]
[1753885353738,0.19533121,3785.3,3784.1,1.49848988]
[1753885353932,0.0071,3785.3,3784.3,1.32125]
[1753885354132,0.5284,3785.1,3784.6,3.727]
[1753885354334,0.5284,3785.1,3785.0,0.9111]
[1753885354541,0.5355,3785.1,3785.0,3.727]
[1753885354835,1.3432,3785.1,3785.0,2.3336]
[1753885355038,1.3432,3785.1,3785.0,20.8436]
[1753885355439,1.3432,3785.1,3785.0,22.237]
[1753885355639,1.3432,3785.1,3784.4,2.8159]
[1753885355640,0.52845,3784.7,3784.4,2.8159]
[1753885355831,0.52845,3784.7,3784.6,3.727]
[1753885356037,0.52842,3784.9,3784.6,0.52844]
[1753885356233,0.52844,3784.8,3784.6,3.727]
[1753885356435,0.52842,3784.9,3784.7,2.8159]
[1753885356630,40.8,3785.5,3784.6,3.727]
[1753885356941,1.32802,3785.3,3784.6,3.727]
[1753885357130,40.8,3785.5,3784.8,1.4225]
[1753885357341,0.18825843,3785.4,3784.9,3.727]
[1753885357533,0.52838,3785.2,3785.1,2.8159]
[1753885357733,0.52838,3785.2,3785.1,3.727]
[1753885358337,0.52837,3785.3,3785.1,3.727]
[1753885358640,0.52834,3785.5,3785.1,0.52838]
[1753885358940,0.52834,3785.5,3785.0,18.504]
[1753885358941,1.49848988,3785.6,3784.8,2.3045]
[1753885359142,1.50909977,3785.5,3785.0,0.9111]
[1753885359337,1.34319,3785.1,3785.0,3.727]
[1753885359539,1.34319,3785.1,3785.0,22.234]
[1753885359738,0.53549,3785.1,3785.0,22.234]
[1753885360041,1.34319,3785.1,3785.0,22.234]
[1753885360542,1.34319,3785.1,3785.0,3.727]
[1753885360736,1.34319,3785.1,3785.0,22.232]
[1753885360937,1.34319,3785.1,3785.0,20.8386]
[1753885361443,1.34319,3785.1,3785.0,20.8316]
[1753885361944,1.34319,3785.1,3784.1,1.49848988]
[1753885361945,0.52846,3784.6,3784.5,22.222]
[1753885362340,41.32846,3784.6,3784.5,22.222]
[1753885362839,0.52846,3784.6,3784.5,22.222]
[1753885363245,1.32097,3785.2,3784.5,18.495]
[1753885363448,0.5284,3785.0,3784.8,0.9111]
[1753885363750,0.5284,3785.1,3784.9,24.646]
[1753885363950,0.52838,3785.2,3785.0,6.106]
[1753885364152,0.52838,3785.2,3785.1,6.106]
[1753885364544,1.09758,3785.2,3785.1,6.106]
[1753885364744,1.10468,3785.2,3785.1,6.106]
[1753885364945,1.10468,3785.2,3785.1,0.9111]
[1753885364946,3.57478,3785.2,3785.1,0.9111]
[1753885365248,3.57478,3785.2,3784.7,1.4225]
[1753885365249,1.10473,3784.8,3784.7,6.106]
[1753885365549,2.95333,3784.8,3784.7,23.2576]
[1753885365943,2.12717,3784.5,3784.4,6.106]
[1753885366153,2.12899,3784.2,3783.5,0.5286]
[1753885366343,0.52857,3783.9,3783.6,0.52859]
[1753885366651,0.52857,3783.9,3783.8,3.727]
[1753885367046,0.52857,3783.9,3783.8,22.274]
[1753885368047,0.53567,3783.9,3783.8,20.8806]
[1753885368351,0.53567,3783.9,3783.8,22.274]
[1753885368547,0.52857,3783.9,3783.8,22.274]
[1753885368754,0.52857,3783.9,3783.8,24.653]
[1753885370350,0.52857,3783.9,3783.8,6.106]
[1753885370650,0.52857,3783.9,3783.8,24.644]
[1753885371053,2.95347,3783.9,3783.8,0.9111]
[1753885371250,3.57497,3783.9,3783.8,19.4391]
[1753885371448,3.57497,3783.9,3783.8,24.634]
[1753885371449,2.12727,3783.9,3783.8,24.634]
[1753885371644,40.8,3784.1,3784.0,0.5719]
[1753885371645,41.32854,3784.1,3784.0,0.5719]
[1753885371847,41.33564,3784.1,3784.0,6.106]
[1753885372052,41.32854,3784.1,3784.0,6.106]
[1753885372356,0.52854,3784.1,3784.0,6.106]
[1753885372949,0.52848,3784.5,3784.4,0.5719]
[1753885373257,0.52847,3784.6,3784.5,6.106]
[1753885373752,40.8,3784.8,3784.7,1.8071]
[1753885374055,2.81930988,3785.6,3784.9,4.2989]
[1753885374056,0.5284,3785.0,3784.9,4.2989]
[1753885374258,1.1047,3785.0,3784.9,6.106]
[1753885374458,40.8071,3785.3,3785.2,2.379]
[1753885374647,42.14317,3785.3,3785.2,4.7126]
[1753885375352,41.32837,3785.3,3785.2,6.106]
[1753885375952,0.52837,3785.3,3785.2,6.106]
[1753885376149,0.52835,3785.4,3785.2,6.106]
[1753885376354,0.52834,3785.5,3785.3,6.106]
[1753885376558,0.52834,3785.5,3785.4,24.616]
[1753885377061,1.10462,3785.6,3785.5,6.106]
[1753885377452,0.5763,3785.6,3785.5,6.106]
[1753885377653,1.6172,3785.6,3785.5,6.106]
[1753885377862,2.13412,3785.6,3785.5,6.106]
[1753885378360,1.6058,3785.6,3785.5,6.106]
[1753885378658,0.7869,3785.9,3785.8,2.4005]
[1753885378862,2.5509,3785.9,3785.8,6.1219]
[1753885379066,2.5668,3785.9,3785.8,6.1219]
[1753885379354,0.7769,3785.9,3785.8,6.1219]
[1753885380160,0.7769,3785.9,3784.6,39.37714]
[1753885380161,0.01,3785.8,3785.2,1.98217]
[1753885380350,2.3668,3785.7,3785.6,6.1219]
[1753885380555,2.3668,3785.7,3785.6,24.6169]
[1753885381561,0.5283,3785.8,3785.7,5.2696]
[1753885381856,2.0683,3785.8,3785.7,6.1219]
[1753885382057,2.8951,3785.8,3785.7,6.1219]
[1753885382362,0.5283,3785.8,3785.7,6.1219]
[1753885382861,41.0,3785.9,3785.7,6.1219]
[1753885382862,0.2,3785.9,3785.8,6.65019]
[1753885383559,0.01,3787.3,3786.7,0.52815]
[1753885383759,0.01,3787.3,3786.9,2.2676]
[1753885383760,0.9414951,3787.2,3786.9,2.2676]
[1753885383962,41.7514951,3787.1,3786.9,3.7214]
[1753885384156,1.5373271,3787.0,3786.9,3.7214]
[1753885384461,1.5373271,3787.0,3786.9,20.8468]
[1753885385263,1.5373271,3787.0,3786.9,20.8418]
[1753885385458,0.52816,3786.7,3786.6,1.3666]
[1753885385664,0.52823,3786.3,3786.1,3.7214]
[1753885385867,0.52823,3786.3,3786.2,22.2014]
[1753885386163,0.52823,3786.3,3786.2,24.6019]
[1753885386555,0.52823,3786.3,3786.2,6.1219]
[1753885386769,0.52823,3786.3,3786.2,24.6219]
[1753885387060,1.10513,3786.3,3786.2,6.1219]
[1753885387266,0.52829,3785.8,3785.7,2.8204]
[1753885387568,0.52829,3785.8,3785.7,21.3204]
[1753885387762,0.52829,3785.8,3785.7,2.8204]
[1753885388067,0.52829,3785.8,3784.9,39.54648988]
[1753885388068,0.52837,3785.3,3784.9,38.048]
[1753885388267,1.7043,3785.8,3785.1,2.8204]
[1753885388562,1.7043,3785.8,3785.0,18.508]
[1753885388766,0.52834,3785.5,3785.1,1.89499]
[1753885388963,0.52833,3785.6,3785.4,1.4538]
[1753885389265,0.52833,3785.6,3785.5,22.2294]
[1753885389461,0.52833,3785.6,3785.5,3.7214]
[1753885389666,0.52837,3785.2,3785.1,3.7214]
[1753885389867,0.52837,3785.2,3785.1,22.2274]
[1753885390656,43.00416,3785.8,3785.1,22.2274]
[1753885390657,40.8,3785.8,3785.2,3.7214]
[1753885390868,0.52832,3785.6,3785.4,3.7214]
[1753885391159,0.52832,3785.6,3785.5,22.2304]
[1753885391359,0.52832,3785.6,3785.5,3.7214]
[1753885391567,0.52832,3785.6,3785.5,22.2274]
[1753885392164,0.8109,3785.8,3785.5,18.501]
[1753885392563,0.52836,3785.3,3785.2,1.4538]
[1753885392758,0.53836,3785.3,3785.2,3.7214]
[1753885392963,0.52844,3784.8,3784.7,1.3666]
[1753885393269,1.32092,3785.3,3784.7,1.3666]
[1753885393270,0.52842,3784.9,3784.8,2.2676]
[1753885393463,0.53842,3784.9,3784.8,3.7214]
[1753885393863,1.34932,3784.9,3784.8,3.7214]